fUSD/lending_fUSD_20250105
["ID","MTS","AMOUNT","RATE_DAILY","PERIOD"]
[347681990,1736055046785,-500.0,9.999e-05,2]
[347681991,1736055046794,-500.0,9.999e-05,2]
[347681992,1736055046804,-939.49,9.999e-05,2]
[347681993,1736055046814,-122.66240757,9.999e-05,2]
[347681994,1736055046825,-377.33759243,9.999e-05,2]
[347681995,1736055046835,-578.91,9.999e-05,2]
[347681996,1736055046845,-707.14402357,9.999e-05,2]
[347682008,1736056231820,-706.58,8.219e-05,2]
[347682009,1736056231830,-298.42961891,9.02e-05,2]
[347682022,1736056237667,-701.57038109,9.02e-05,2]
[347682023,1736056237676,-500.8389256,9.025e-05,2]
[347682024,1736056237686,-431.92,9.118e-05,2]
[347682025,1736056237696,-150.0,9.173e-05,2]
[347682026,1736056237706,-150.0,9.173e-05,2]
[347682027,1736056237716,-150.0,9.173e-05,2]
[347682028,1736056237726,-400.0,9.2e-05,3]
[347682029,1736056237735,-300.0,9.251e-05,2]
[347682030,1736056237745,-23900.0,9.252e-05,2]
[347682031,1736056237754,-800.0,9.3e-05,3]
[347682032,1736056237763,-250.0,9.384e-05,2]
[347682033,1736056237773,-1300.0,9.4e-05,3]
[347682034,1736056237782,-1700.0,9.5e-05,3]
[347682035,1736056237792,-6213.0,9.589e-05,2]
[347682036,1736056237801,-2200.0,9.6e-05,3]
[347682037,1736056237811,-2500.0,9.7e-05,2]
[347682038,1736056237820,-400.0,9.7e-05,3]
[347682039,1736056237829,-5000.0,9.7e-05,2]
[347682040,1736056237839,-150.0,9.702e-05,2]
[347682041,1736056237848,-500.0,9.799e-05,2]
[347682042,1736056237858,-500.0,9.799e-05,2]
[347682043,1736056237868,-500.0,9.799e-05,2]
[347682044,1736056237877,-500.0,9.799e-05,2]
[347682046,1736056237887,-500.0,9.799e-05,2]
[347682047,1736056237896,-500.0,9.799e-05,2]
[347682048,1736056237905,-500.0,9.799e-05,2]
[347682049,1736056237915,-500.0,9.799e-05,2]
[347682050,1736056237924,-500.0,9.799e-05,2]
[347682051,1736056237934,-500.0,9.799e-05,2]
[347682052,1736056237943,-500.0,9.799e-05,2]
[347682053,1736056237954,-500.0,9.799e-05,2]
[347682054,1736056237964,-500.0,9.799e-05,2]
[347682055,1736056237973,-500.0,9.799e-05,2]
[347682056,1736056237983,-542.08,9.799e-05,2]
[347682057,1736056237991,-500.0,9.799e-05,2]
[347682058,1736056238001,-500.0,9.799e-05,2]
[347682060,1736056238010,-500.0,9.799e-05,2]
[347682063,1736056238019,-500.0,9.799e-05,2]
[347682066,1736056238028,-500.0,9.799e-05,2]
[347682068,1736056238038,-500.0,9.799e-05,2]
[347682070,1736056238047,-500.0,9.799e-05,2]
[347682072,1736056238057,-500.0,9.799e-05,2]
[347682074,1736056238067,-500.0,9.799e-05,2]
[347682076,1736056238076,-563.01,9.799e-05,2]
[347682078,1736056238085,-500.0,9.799e-05,2]
[347682080,1736056238095,-500.0,9.799e-05,2]
[347682082,1736056238105,-500.0,9.799e-05,2]
[347682084,1736056238115,-500.0,9.799e-05,2]
[347682086,1736056238124,-500.0,9.799e-05,2]
[347682088,1736056238135,-500.0,9.799e-05,2]
[347682090,1736056238143,-500.0,9.799e-05,2]
[347682092,1736056238153,-381.78423136,9.799e-05,2]
[347682094,1736056238162,-500.0,9.799e-05,2]
[347682096,1736056238171,-500.0,9.799e-05,2]
[347682098,1736056238180,-500.0,9.799e-05,2]
[347682100,1736056238189,-500.0,9.799e-05,2]
[347682102,1736056238199,-500.0,9.799e-05,2]
[347682104,1736056238208,-500.0,9.799e-05,2]
[347682106,1736056238217,-500.0,9.799e-05,2]
[347682108,1736056238226,-501.50211354,9.799e-05,2]
[347682110,1736056238235,-289.53006669,9.799e-05,2]
[347682112,1736056238245,-556.18,9.799e-05,2]
[347682114,1736056238254,-500.0,9.799e-05,2]
[347682116,1736056238264,-500.0,9.799e-05,2]
[347682118,1736056238274,-586.91,9.799e-05,2]
[347682120,1736056238283,-500.0,9.799e-05,2]
[347682122,1736056238292,-500.0,9.799e-05,2]
[347682123,1736056238301,-500.0,9.799e-05,2]
[347682125,1736056238313,-500.0,9.799e-05,2]
[347682127,1736056238322,-500.0,9.799e-05,2]
[347682129,1736056238333,-500.0,9.799e-05,2]
[347682131,1736056238343,-500.0,9.799e-05,2]
[347682133,1736056238352,-500.0,9.799e-05,2]
[347682135,1736056238361,-500.0,9.799e-05,2]
[347682137,1736056238370,-500.0,9.799e-05,2]
[347682139,1736056238379,-500.0,9.799e-05,2]
[347682141,1736056238389,-500.0,9.799e-05,2]
[347682142,1736056238401,-500.0,9.799e-05,2]
[347682144,1736056238411,-597.77,9.799e-05,2]
[347682146,1736056238420,-521.37,9.799e-05,2]
[347682148,1736056238429,-500.0,9.799e-05,2]
[347682150,1736056238439,-529.69,9.799e-05,2]
[347682152,1736056238448,-500.0,9.799e-05,2]
[347682154,1736056238457,-500.0,9.799e-05,2]
[347682156,1736056238466,-500.0,9.799e-05,2]
[347682158,1736056238475,-500.0,9.799e-05,2]
[347682160,1736056238484,-500.0,9.799e-05,2]
[347682162,1736056238493,-573.15,9.799e-05,2]
[347682164,1736056238503,-500.0,9.799e-05,2]
[347682166,1736056238513,-500.0,9.799e-05,2]
[347682168,1736056238523,-500.0,9.799e-05,2]
[347682170,1736056238532,-500.0,9.799e-05,2]
[347682172,1736056238541,-500.0,9.799e-05,2]
[347682174,1736056238550,-500.0,9.799e-05,2]
[347682176,1736056238559,-500.0,9.799e-05,2]
[347682178,1736056238569,-500.0,9.799e-05,2]
[347682180,1736056238579,-612.08,9.799e-05,2]
[347682182,1736056238588,-500.0,9.799e-05,2]
[347682184,1736056238597,-500.0,9.799e-05,2]
[347682186,1736056238606,-500.0,9.799e-05,2]
[347682187,1736056238615,-1941.52,9.799e-05,2]
[347682189,1736056238625,-500.0,9.799e-05,2]
[347682190,1736056238634,-500.0,9.799e-05,2]
[347682192,1736056238642,-500.0,9.799e-05,2]
[347682194,1736056238652,-500.0,9.799e-05,2]
[347682195,1736056238661,-500.0,9.799e-05,2]
[347682196,1736056238670,-325.83261967,9.799e-05,2]
[347682197,1736056238680,-635.36,9.799e-05,2]
[347682198,1736056238689,-500.0,9.799e-05,2]
[347682199,1736056238698,-500.0,9.799e-05,2]
[347682200,1736056238707,-500.0,9.799e-05,2]
[347682201,1736056238717,-500.0,9.799e-05,2]
[347682202,1736056238726,-500.0,9.799e-05,2]
[347682203,1736056238736,-133.60000611,9.799e-05,2]
[347682204,1736056238751,-366.39999389,9.799e-05,2]
[347682205,1736056238760,-500.0,9.799e-05,2]
[347682206,1736056238770,-500.0,9.799e-05,2]
[347682207,1736056238780,-500.0,9.799e-05,2]
[347682208,1736056238789,-500.0,9.799e-05,2]
[347682209,1736056238798,-500.0,9.799e-05,2]
[347682210,1736056238808,-500.0,9.799e-05,2]
[347682211,1736056238818,-500.0,9.799e-05,2]
[347682212,1736056238827,-500.0,9.799e-05,2]
[347682213,1736056238837,-500.0,9.799e-05,2]
[347682214,1736056238846,-743.98,9.799e-05,2]
[347682215,1736056238855,-500.0,9.799e-05,2]
[347682216,1736056238865,-500.0,9.799e-05,2]
[347682217,1736056238874,-500.0,9.799e-05,2]
[347682218,1736056238883,-500.0,9.799e-05,2]
[347682219,1736056238893,-500.0,9.799e-05,2]
[347682220,1736056238902,-628.88,9.799e-05,2]
[347682221,1736056238912,-500.0,9.799e-05,2]
[347682222,1736056238921,-2283.93,9.799e-05,2]
[347682223,1736056238930,-617.97,9.799e-05,2]
[347682224,1736056238939,-514.4,9.799e-05,2]
[347682225,1736056238948,-500.0,9.799e-05,2]
[347682226,1736056238957,-500.0,9.799e-05,2]
[347682227,1736056238966,-500.0,9.799e-05,2]
[347682228,1736056238976,-500.0,9.799e-05,2]
[347682229,1736056238985,-500.0,9.799e-05,2]
[347682230,1736056238994,-500.0,9.799e-05,2]
[347682231,1736056239008,-1072.92,9.799e-05,2]
[347682232,1736056239017,-500.0,9.799e-05,2]
[347682233,1736056239027,-586.71,9.799e-05,2]
[347682234,1736056239036,-500.0,9.799e-05,2]
[347682235,1736056239046,-500.0,9.799e-05,2]
[347682236,1736056239055,-524.07,9.799e-05,2]
[347682237,1736056239064,-500.0,9.799e-05,2]
[347682238,1736056239073,-500.0,9.799e-05,2]
[347682239,1736056239083,-500.0,9.799e-05,2]
[347682240,1736056239092,-500.0,9.799e-05,2]
[347682241,1736056239102,-500.0,9.799e-05,2]
[347682242,1736056239111,-500.0,9.799e-05,2]
[347682243,1736056239120,-500.0,9.799e-05,2]
[347682244,1736056239129,-500.0,9.799e-05,2]
[347682245,1736056239138,-500.0,9.799e-05,2]
[347682246,1736056239147,-1771.57,9.799e-05,2]
[347682247,1736056239156,-500.0,9.799e-05,2]
[347682248,1736056239165,-500.0,9.799e-05,2]
[347682249,1736056239174,-500.0,9.799e-05,2]
[347682250,1736056239184,-5754.34,9.799e-05,2]
[347682251,1736056239193,-500.0,9.799e-05,2]
[347682252,1736056239204,-500.0,9.799e-05,2]
[347682253,1736056239213,-500.0,9.799e-05,2]
[347682254,1736056239222,-500.0,9.799e-05,2]
[347682255,1736056239232,-500.0,9.799e-05,2]
[347682256,1736056239241,-500.0,9.799e-05,2]
[347682257,1736056239250,-500.0,9.799e-05,2]
[347682258,1736056239258,-500.0,9.799e-05,2]
[347682259,1736056239267,-582.42,9.799e-05,2]
[347682260,1736056239277,-500.0,9.799e-05,2]
[347682261,1736056239286,-500.0,9.799e-05,2]
[347682262,1736056239295,-500.0,9.799e-05,2]
[347682263,1736056239305,-602.02,9.799e-05,2]
[347682264,1736056239314,-500.0,9.799e-05,2]
[347682265,1736056239324,-500.0,9.799e-05,2]
[347682266,1736056239333,-500.0,9.799e-05,2]
[347682267,1736056239342,-595.26,9.799e-05,2]
[347682268,1736056239351,-500.0,9.799e-05,2]
[347682270,1736056239361,-500.0,9.799e-05,2]
[347682271,1736056239370,-500.0,9.799e-05,2]
[347682272,1736056239379,-819.74,9.799e-05,2]
[347682273,1736056239388,-500.0,9.799e-05,2]
[347682274,1736056239397,-500.0,9.799e-05,2]
[347682275,1736056239406,-500.0,9.799e-05,2]
[347682276,1736056239416,-500.0,9.799e-05,2]
[347682277,1736056239426,-500.0,9.799e-05,2]
[347682278,1736056239435,-500.0,9.799e-05,2]
[347682279,1736056239445,-598.9,9.799e-05,2]
[347682280,1736056239455,-500.0,9.799e-05,2]
[347682281,1736056239464,-500.0,9.799e-05,2]
[347682282,1736056239474,-500.0,9.799e-05,2]
[347682283,1736056239483,-2416.08,9.799e-05,2]
[347682284,1736056239492,-500.0,9.799e-05,2]
[347682285,1736056239501,-500.0,9.799e-05,2]
[347682286,1736056239511,-500.0,9.799e-05,2]
[347682287,1736056239520,-500.0,9.799e-05,2]
[347682288,1736056239529,-733.1,9.799e-05,2]
[347682289,1736056239539,-500.0,9.799e-05,2]
[347682290,1736056239548,-500.0,9.799e-05,2]
[347682291,1736056239557,-500.0,9.799e-05,2]
[347682292,1736056239567,-500.0,9.799e-05,2]
[347682293,1736056239576,-500.0,9.799e-05,2]
[347682294,1736056239585,-500.0,9.799e-05,2]
[347682295,1736056239595,-500.0,9.799e-05,2]
[347682296,1736056239605,-500.0,9.799e-05,2]
[347682297,1736056239614,-500.0,9.799e-05,2]
[347682298,1736056239623,-500.0,9.799e-05,2]
[347682299,1736056239633,-564.62,9.799e-05,2]
[347682300,1736056239642,-3631.16,9.799e-05,2]
[347682301,1736056239651,-500.0,9.799e-05,2]
[347682302,1736056239662,-500.0,9.799e-05,2]
[347682303,1736056239672,-500.0,9.799e-05,2]
[347682304,1736056239681,-500.0,9.799e-05,2]
[347682305,1736056239691,-500.0,9.799e-05,2]
[347682306,1736056239700,-500.0,9.799e-05,2]
[347682307,1736056239710,-2272.82,9.799e-05,2]
[347682308,1736056239719,-500.0,9.799e-05,2]
[347682309,1736056239730,-500.0,9.799e-05,2]
[347682310,1736056239740,-500.0,9.799e-05,2]
[347682311,1736056239749,-2180.0,9.799e-05,2]
[347682312,1736056239758,-500.0,9.799e-05,2]
[347682313,1736056239767,-500.0,9.799e-05,2]
[347682314,1736056239777,-500.0,9.799e-05,2]
[347682315,1736056239786,-500.0,9.799e-05,2]
[347682316,1736056239795,-500.0,9.799e-05,2]
[347682317,1736056239804,-1740.52,9.799e-05,2]
[347682318,1736056239814,-575.55,9.799e-05,2]
[347682319,1736056239824,-540.24285704,9.799e-05,2]
[347682320,1736056239833,-506.63050882,9.799e-05,2]
[347682321,1736056239843,-500.0,9.799e-05,2]
[347682322,1736056239852,-500.0,9.799e-05,2]
[347682323,1736056239861,-500.0,9.799e-05,2]
[347682324,1736056239871,-500.0,9.799e-05,2]
[347682325,1736056239880,-515.01,9.799e-05,2]
[347682326,1736056239890,-500.0,9.799e-05,2]
[347682327,1736056239899,-547.34,9.799e-05,2]
[347682328,1736056239910,-500.0,9.799e-05,2]
[347682329,1736056239919,-500.0,9.799e-05,2]
[347682330,1736056239931,-535.94,9.799e-05,2]
[347682331,1736056239943,-500.0,9.799e-05,2]
[347682332,1736056239954,-500.0,9.799e-05,2]
[347682333,1736056239963,-2989.15,9.799e-05,2]
[347682334,1736056239974,-500.0,9.799e-05,2]
[347682335,1736056239983,-500.0,9.799e-05,2]
[347682336,1736056239993,-2444.23,9.799e-05,2]
[347682337,1736056240006,-500.0,9.799e-05,2]
[347682338,1736056240016,-500.0,9.799e-05,2]
[347682339,1736056240026,-500.0,9.799e-05,2]
[347682340,1736056240036,-500.0,9.799e-05,2]
[347682341,1736056240045,-500.0,9.799e-05,2]
[347682343,1736056240054,-500.0,9.799e-05,2]
[347682345,1736056240064,-500.0,9.799e-05,2]
[347682346,1736056240074,-500.0,9.799e-05,2]
[347682347,1736056240085,-500.0,9.799e-05,2]
[347682348,1736056240094,-500.0,9.799e-05,2]
[347682349,1736056240103,-611.13,9.799e-05,2]
[347682350,1736056240113,-520.37,9.799e-05,2]
[347682351,1736056240123,-593.12,9.799e-05,2]
[347682352,1736056240132,-500.0,9.799e-05,2]
[347682353,1736056240142,-569.37,9.799e-05,2]
[347682354,1736056240151,-500.0,9.799e-05,2]
[347682355,1736056240162,-500.0,9.799e-05,2]
[347682356,1736056240171,-611.46,9.799e-05,2]
[347682357,1736056240182,-500.0,9.799e-05,2]
[347682358,1736056240191,-500.0,9.799e-05,2]
[347682359,1736056240199,-500.0,9.799e-05,2]
[347682360,1736056240208,-500.0,9.799e-05,2]
[347682361,1736056240218,-500.0,9.799e-05,2]
[347682362,1736056240227,-500.0,9.799e-05,2]
[347682363,1736056240236,-500.0,9.799e-05,2]
[347682364,1736056240245,-500.0,9.799e-05,2]
[347682365,1736056240255,-500.0,9.799e-05,2]
[347682366,1736056240264,-500.0,9.799e-05,2]
[347682367,1736056240274,-500.0,9.799e-05,2]
[347682368,1736056240284,-500.0,9.799e-05,2]
[347682369,1736056240293,-500.0,9.799e-05,2]
[347682370,1736056240303,-500.0,9.799e-05,2]
[347682371,1736056240312,-500.0,9.799e-05,2]
[347682372,1736056240323,-500.0,9.799e-05,2]
[347682373,1736056240332,-928.92,9.799e-05,2]
[347682374,1736056240340,-500.0,9.799e-05,2]
[347682375,1736056240350,-500.0,9.799e-05,2]
[347682376,1736056240359,-500.0,9.799e-05,2]
[347682377,1736056240369,-500.0,9.799e-05,2]
[347682378,1736056240378,-500.0,9.799e-05,2]
[347682379,1736056240387,-500.0,9.799e-05,2]
[347682380,1736056240396,-602.15,9.799e-05,2]
[347682381,1736056240406,-1102.53,9.799e-05,2]
[347682382,1736056240415,-500.0,9.799e-05,2]
[347682383,1736056240424,-560.25,9.799e-05,2]
[347682384,1736056240433,-830.5,9.799e-05,2]
[347682385,1736056240442,-500.0,9.799e-05,2]
[347682386,1736056240451,-500.0,9.799e-05,2]
[347682387,1736056240461,-500.0,9.799e-05,2]
[347682388,1736056240470,-500.0,9.799e-05,2]
[347682389,1736056240479,-500.0,9.799e-05,2]
[347682390,1736056240488,-500.0,9.799e-05,2]
[347682391,1736056240497,-593.25,9.799e-05,2]
[347682392,1736056240506,-500.0,9.799e-05,2]
[347682393,1736056240515,-500.0,9.799e-05,2]
[347682394,1736056240525,-355187.97908679,9.8e-05,2]
[347682395,1736056240539,-534.94300214,9.8e-05,2]
[347682396,1736056240565,-2913.51928017,9.8e-05,2]
[347682397,1736056240583,-7084.55719837,9.8e-05,2]
[347682398,1736056240807,-500.0,9.799e-05,2]
[347682399,1736056240818,-34279.00143253,9.8e-05,2]
[347682400,1736056240828,-400.0,9.8e-05,3]
[347682401,1736056240837,-346.241,9.86e-05,2]
[347682402,1736056240847,-7008.0,9.863e-05,2]
[347682403,1736056240857,-500.0,9.898e-05,2]
[347682404,1736056241061,-500.0,9.898e-05,2]
[347682405,1736056241071,-1000.0,9.899e-05,2]
[347682406,1736056241080,-1962.8378,9.899e-05,2]
[347682407,1736056241091,-771.0042,9.899e-05,2]
[347682408,1736056241100,-45977.6794,9.899e-05,2]
[347682409,1736056241109,-400.0,9.9e-05,3]
[347682410,1736056241119,-8623.22308083,9.91e-05,2]
[347682411,1736056241127,-150.0,9.963e-05,2]
[347682412,1736056241141,-386.55990554,9.997e-05,2]
[347682413,1736056241151,-500.0,9.997e-05,2]
[347682414,1736056241160,-500.0,9.997e-05,2]
[347682415,1736056241169,-500.0,9.997e-05,2]
[347682416,1736056241178,-500.0,9.997e-05,2]
[347682417,1736056241187,-500.0,9.997e-05,2]
[347682418,1736056241196,-500.0,9.997e-05,2]
[347682419,1736056241206,-500.0,9.997e-05,2]
[347682420,1736056241215,-500.0,9.997e-05,2]
[347682421,1736056241224,-500.0,9.997e-05,2]
[347682422,1736056241233,-500.0,9.997e-05,2]
[347682423,1736056241243,-500.0,9.997e-05,2]
[347682424,1736056241255,-419.80780117,9.997e-05,2]
[347682425,1736056241267,-500.0,9.997e-05,2]
[347682426,1736056241278,-500.0,9.997e-05,2]
[347682427,1736056241288,-500.0,9.997e-05,2]
[347682428,1736056241298,-500.0,9.997e-05,2]
[347682429,1736056241308,-500.0,9.997e-05,2]
[347682430,1736056241319,-500.0,9.997e-05,2]
[347682431,1736056241328,-500.0,9.997e-05,2]
[347682432,1736056241338,-500.0,9.997e-05,2]
[347682433,1736056241348,-502.82,9.997e-05,2]
[347682434,1736056241359,-500.0,9.997e-05,2]
[347682435,1736056241368,-500.0,9.997e-05,2]
[347682436,1736056241378,-500.0,9.997e-05,2]
[347682437,1736056241387,-500.0,9.997e-05,2]
[347682438,1736056241396,-500.0,9.997e-05,2]
[347682439,1736056241405,-500.0,9.997e-05,2]
[347682440,1736056241414,-500.0,9.997e-05,2]
[347682441,1736056241424,-500.0,9.997e-05,2]
[347682442,1736056241433,-500.0,9.997e-05,2]
[347682443,1736056241442,-54.22502384,9.997e-05,2]
[347682444,1736056241461,-445.77497616,9.997e-05,2]
[347682445,1736056241471,-41.68502384,9.997e-05,2]
[347682446,1736056241497,-272.78632935,9.997e-05,2]
[347682447,1736056241512,-185.52864681,9.997e-05,2]
[347682448,1736056241522,-202.38472824,9.997e-05,2]
[347682449,1736056241535,-297.61527176,9.997e-05,2]
[347682450,1736056241544,-312.64872824,9.997e-05,2]
[347682454,1736056242810,-187.35127176,9.997e-05,2]
[347682455,1736056242819,-500.0,9.997e-05,2]
[347682456,1736056242829,-25.01375861,9.997e-05,2]
[347682457,1736056242865,-415.58307039,9.997e-05,2]
[347682479,1736056245549,-257.41675864,9.799e-05,2]
[347682480,1736056245610,-242.58324136,9.799e-05,2]
[347682481,1736056245619,-438.41675864,9.799e-05,2]
[347682482,1736056245825,-424.92,9.799e-05,2]
[347682493,1736057431882,-671.25,8.219e-05,2]
[347682494,1736057431895,-250.0,8.94e-05,2]
[347682495,1736057431905,-175.9,9.097e-05,2]
[347682496,1736057431915,-1000.0,9.109e-05,2]
[347682497,1736057431925,-16.13286315,9.123e-05,2]
[347682498,1736057431959,-483.86713685,9.123e-05,2]
[347682499,1736057431969,-150.0,9.173e-05,2]
[347682500,1736057431979,-150.0,9.173e-05,2]
[347682501,1736057431988,-150.0,9.173e-05,2]
[347682502,1736057431998,-23900.0,9.228e-05,2]
[347682503,1736057432007,-675.18,9.378e-05,2]
[347682504,1736057432017,-341.211,9.5e-05,2]
[347682505,1736057432026,-212.0,9.534e-05,2]
[347682506,1736057432035,-150.0,9.682e-05,2]
[347682507,1736057432045,-2500.0,9.698e-05,2]
[347682508,1736057432055,-5000.0,9.699e-05,2]
[347682509,1736057432065,-500.0,9.797e-05,2]
[347682510,1736057432075,-500.0,9.797e-05,2]
[347682511,1736057432084,-500.0,9.797e-05,2]
[347682512,1736057432093,-159.27463861,9.797e-05,2]
[347682513,1736057432103,-890.22,9.797e-05,2]
[347682514,1736057432112,-640.23,9.797e-05,2]
[347682515,1736057432122,-500.0,9.797e-05,2]
[347682516,1736057432131,-500.0,9.798e-05,2]
[347682517,1736057432140,-500.0,9.798e-05,2]
[347682518,1736057432150,-500.0,9.798e-05,2]
[347682519,1736057432160,-500.0,9.798e-05,2]
[347682520,1736057432171,-577.06,9.798e-05,2]
[347682521,1736057432180,-500.0,9.798e-05,2]
[347682522,1736057432190,-500.0,9.798e-05,2]
[347682523,1736057432199,-500.0,9.798e-05,2]
[347682524,1736057432209,-500.0,9.798e-05,2]
[347682525,1736057432218,-500.0,9.798e-05,2]
[347682526,1736057432228,-500.0,9.798e-05,2]
[347682527,1736057432237,-500.0,9.798e-05,2]
[347682528,1736057432246,-500.0,9.798e-05,2]
[347682529,1736057432256,-500.0,9.798e-05,2]
[347682530,1736057432265,-500.0,9.798e-05,2]
[347682531,1736057432275,-500.0,9.798e-05,2]
[347682532,1736057432283,-500.0,9.798e-05,2]
[347682533,1736057432292,-500.0,9.798e-05,2]
[347682534,1736057432302,-500.0,9.798e-05,2]
[347682535,1736057432311,-500.0,9.798e-05,2]
[347682536,1736057432321,-533.0,9.798e-05,2]
[347682537,1736057432330,-500.0,9.798e-05,2]
[347682538,1736057432340,-521.1,9.798e-05,2]
[347682539,1736057432349,-500.0,9.798e-05,2]
[347682540,1736057432358,-500.0,9.798e-05,2]
[347682541,1736057432368,-500.0,9.798e-05,2]
[347682542,1736057432378,-500.0,9.798e-05,2]
[347682544,1736057432387,-500.0,9.798e-05,2]
[347682546,1736057432397,-500.0,9.798e-05,2]
[347682548,1736057432407,-500.0,9.798e-05,2]
[347682550,1736057432416,-500.0,9.798e-05,2]
[347682552,1736057432426,-500.0,9.798e-05,2]
[347682554,1736057432435,-539.55,9.798e-05,2]
[347682555,1736057432444,-500.0,9.798e-05,2]
[347682557,1736057432454,-500.0,9.798e-05,2]
[347682559,1736057432464,-500.0,9.798e-05,2]
[347682560,1736057432473,-500.0,9.798e-05,2]
[347682561,1736057432483,-500.0,9.798e-05,2]
[347682562,1736057432492,-500.0,9.798e-05,2]
[347682563,1736057432502,-500.0,9.798e-05,2]
[347682564,1736057432512,-500.0,9.798e-05,2]
[347682565,1736057432522,-500.0,9.798e-05,2]
[347682566,1736057432531,-500.0,9.798e-05,2]
[347682567,1736057432542,-752.85,9.798e-05,2]
[347682568,1736057432551,-500.0,9.798e-05,2]
[347682569,1736057432562,-500.0,9.798e-05,2]
[347682570,1736057432571,-500.0,9.798e-05,2]
[347682571,1736057432581,-500.0,9.798e-05,2]
[347682572,1736057432591,-500.0,9.798e-05,2]
[347682573,1736057432600,-500.0,9.798e-05,2]
[347682574,1736057432610,-500.0,9.798e-05,2]
[347682575,1736057432625,-500.0,9.798e-05,2]
[347682576,1736057432635,-500.0,9.798e-05,2]
[347682577,1736057432645,-500.0,9.798e-05,2]
[347682578,1736057432656,-500.0,9.798e-05,2]
[347682579,1736057432666,-500.0,9.798e-05,2]
[347682580,1736057432675,-500.0,9.798e-05,2]
[347682581,1736057432685,-500.0,9.798e-05,2]
[347682582,1736057432695,-500.0,9.798e-05,2]
[347682583,1736057432705,-308.79394907,9.798e-05,2]
[347682584,1736057432714,-500.0,9.798e-05,2]
[347682585,1736057432723,-500.76723205,9.798e-05,2]
[347682586,1736057432734,-450.48,9.798e-05,2]
[347682587,1736057432743,-500.0,9.798e-05,2]
[347682588,1736057432755,-500.0,9.798e-05,2]
[347682589,1736057432766,-500.0,9.798e-05,2]
[347682590,1736057432777,-500.0,9.798e-05,2]
[347682591,1736057432786,-500.0,9.798e-05,2]
[347682592,1736057432796,-500.0,9.798e-05,2]
[347682593,1736057432805,-500.0,9.798e-05,2]
[347682594,1736057432814,-500.0,9.798e-05,2]
[347682595,1736057432823,-500.0,9.798e-05,2]
[347682596,1736057432832,-500.0,9.798e-05,2]
[347682597,1736057432840,-500.0,9.798e-05,2]
[347682598,1736057432849,-500.0,9.798e-05,2]
[347682599,1736057432859,-500.0,9.798e-05,2]
[347682600,1736057432868,-500.83026792,9.798e-05,2]
[347682601,1736057432877,-500.0,9.798e-05,2]
[347682602,1736057432886,-500.0,9.798e-05,2]
[347682603,1736057432900,-500.0,9.798e-05,2]
[347682604,1736057432909,-572.87,9.798e-05,2]
[347682605,1736057432919,-500.0,9.798e-05,2]
[347682606,1736057432928,-500.0,9.798e-05,2]
[347682607,1736057432939,-500.0,9.798e-05,2]
[347682608,1736057432948,-586.97,9.798e-05,2]
[347682609,1736057432957,-507.62,9.798e-05,2]
[347682610,1736057432967,-500.0,9.798e-05,2]
[347682611,1736057432976,-500.0,9.798e-05,2]
[347682612,1736057432986,-500.0,9.798e-05,2]
[347682613,1736057432996,-500.0,9.798e-05,2]
[347682614,1736057433005,-500.0,9.798e-05,2]
[347682615,1736057433015,-500.0,9.798e-05,2]
[347682616,1736057433024,-500.0,9.798e-05,2]
[347682617,1736057433034,-518.55,9.798e-05,2]
[347682618,1736057433043,-334.05,9.798e-05,2]
[347682619,1736057433053,-500.0,9.798e-05,2]
[347682620,1736057433062,-500.0,9.798e-05,2]
[347682621,1736057433266,-572.56,9.798e-05,2]
[347682622,1736057433279,-500.0,9.798e-05,2]
[347682623,1736057433288,-500.0,9.798e-05,2]
[347682624,1736057433297,-500.0,9.798e-05,2]
[347682625,1736057433307,-500.0,9.798e-05,2]